fUST/lending_fUST_20250109
["ID","MTS","AMOUNT","RATE_DAILY","PERIOD"]
[348223645,1736399438625,-500.0,0.0002,3]
[348223646,1736399438635,-2217.11,0.0002,3]
[348223647,1736399438643,-500.0,0.0002,3]
[348223648,1736399438654,-500.0,0.0002,3]
[348223649,1736399438662,-500.0,0.0002,3]
[348223650,1736399438672,-500.0,0.0002,3]
[348223651,1736399438681,-500.0,0.0002,3]
[348223652,1736399438691,-557.23,0.0002,3]
[348223653,1736399438699,-500.0,0.0002,3]
[348223654,1736399438708,-500.0,0.0002,3]
[348223655,1736399438717,-500.0,0.0002,3]
[348223656,1736399438727,-107.5174618,0.0002,3]
[348223657,1736399438739,-1122.3825382,0.0002,3]
[348223658,1736399438748,-151.0,0.0002,2]
[348223659,1736399438757,-500.0,0.0002,3]
[348223660,1736399438767,-151.0,0.0002,2]
[348223661,1736399438776,-500.0,0.0002,3]
[348223662,1736399438785,-500.0,0.0002,3]
[348223663,1736399438794,-512.62,0.0002,3]
[348223664,1736399438803,-500.0,0.0002,3]
[348223665,1736399438812,-500.0,0.0002,3]
[348223666,1736399438821,-500.0,0.0002,3]
[348223667,1736399438830,-500.0,0.0002,3]
[348223668,1736399438839,-378.92322307,0.0002,3]
[348223669,1736399438850,-162.49677693,0.0002,3]
[348223670,1736399438859,-151.0,0.0002,2]
[348223671,1736399438869,-195.448912,0.0002,2]
[348223672,1736399438877,-500.0,0.0002,3]
[348223673,1736399438884,-151.0,0.0002,2]
[348223674,1736399438892,-1014.89,0.0002,3]
[348223675,1736399438901,-255.209534,0.0002,2]
[348223676,1736399438910,-255.209534,0.0002,2]
[348223677,1736399438919,-446.53455727,0.0002,3]
[348223678,1736399438928,-500.0,0.0002,3]
[348223679,1736399438937,-500.0,0.0002,3]
[348223680,1736399438946,-500.0,0.0002,3]
[348223681,1736399438955,-602.43172518,0.0002,3]
[348223682,1736399438964,-12537.16341042,0.0002,2]
[348223683,1736399438975,-1159.68435452,0.0002,2]
[348223686,1736399440072,-496.750002,0.0002,2]
[348223687,1736399440128,-1382.74151618,0.0002,2]
[348223688,1736399440186,-13898.87071688,0.0002,2]
[348223689,1736399440195,-500.0,0.0002,3]
[348223690,1736399440205,-1805.13,0.0002,3]
[348223691,1736399440215,-500.0,0.0002,3]
[348223692,1736399440224,-260.22811801,0.0002,3]
[348223693,1736399440233,-500.0,0.0002,3]
[348223694,1736399440242,-500.0,0.0002,3]
[348223695,1736399440251,-500.0,0.0002,3]
[348223696,1736399440260,-500.0,0.0002,3]
[348223697,1736399440270,-699.3,0.0002,3]
[348223698,1736399440279,-500.0,0.0002,3]
[348223699,1736399440288,-500.0,0.0002,3]
[348223700,1736399440298,-500.0,0.0002,3]
[348223701,1736399440307,-500.0,0.0002,3]
[348223702,1736399440316,-500.0,0.0002,3]
[348223703,1736399440325,-500.0,0.0002,3]
[348223704,1736399440334,-500.0,0.0002,3]
[348223705,1736399440343,-290.6567484,0.0002,3]
[348223706,1736399440353,-500.0,0.0002,3]
[348223707,1736399440365,-9620.24,0.0002,3]
[348223708,1736399440374,-151.0,0.0002,2]
[348223709,1736399440383,-769.26,0.0002,3]
[348223710,1736399440392,-500.0,0.0002,3]
[348223711,1736399440402,-500.0,0.0002,3]
[348223712,1736399440411,-935.81,0.0002,3]
[348223713,1736399440419,-851.59,0.0002,3]
[348223714,1736399440430,-500.0,0.0002,3]
[348223715,1736399440439,-500.0,0.0002,3]
[348223716,1736399440450,-506.66652329,0.0002,3]
[348223717,1736399440460,-500.0,0.0002,3]
[348223718,1736399440469,-500.0,0.0002,3]
[348223719,1736399440478,-151.0,0.0002,2]
[348223720,1736399440487,-500.0,0.0002,3]
[348223721,1736399440497,-500.0,0.0002,3]
[348223722,1736399440506,-2400.13,0.0002,3]
[348223723,1736399440515,-500.0,0.0002,3]
[348223724,1736399440525,-500.0,0.0002,3]
[348223725,1736399440534,-500.0,0.0002,3]
[348223726,1736399440543,-446.4786934,0.0002007,2]
[348223727,1736399440552,-151.0,0.00020176,2]
[348223728,1736399440561,-332.293283,0.00020176,2]
[348223729,1736399440571,-332.293283,0.00020176,2]
[348223730,1736399440580,-495.596154,0.00020176,2]
[348223731,1736399440589,-495.596154,0.00020176,2]
[348223732,1736399440599,-181.82621,0.000202,2]
[348223733,1736399440608,-195.71269926,0.00020272,2]
[348223734,1736399440617,-151.0,0.00020272,2]
[348223735,1736399440627,-181.653266,0.00020272,2]
[348223736,1736399440636,-242.862676,0.00020273,2]
[348223737,1736399440645,-242.862676,0.00020273,2]
[348223738,1736399440656,-151.0,0.00020273,2]
[348223739,1736399440666,-500.0,0.00020273,3]
[348223740,1736399440675,-500.0,0.00020273,3]
[348223741,1736399440684,-2217.11,0.00020273,3]
[348223742,1736399440694,-500.0,0.00020273,3]
[348223743,1736399440703,-500.0,0.00020273,3]
[348223744,1736399440713,-500.0,0.00020273,3]
[348223745,1736399440723,-500.0,0.00020273,3]
[348223746,1736399440732,-500.0,0.00020273,3]
[348223747,1736399440742,-500.0,0.00020273,3]
[348223748,1736399440751,-1229.9,0.00020273,3]
[348223749,1736399440760,-151.0,0.00020273,2]
[348223750,1736399440770,-500.0,0.00020273,3]
[348223751,1736399440779,-151.0,0.00020273,2]
[348223752,1736399440788,-181.48,0.00020273,3]
[348223753,1736399440798,-196.19,0.00020273,3]
[348223754,1736399440807,-151.0,0.00020273,2]
[348223755,1736399440816,-419.543378,0.00020273,2]
[348223756,1736399440825,-419.543378,0.00020273,2]
[348223757,1736399440834,-1014.89,0.00020273,3]
[348223758,1736399440843,-500.0,0.00020273,3]
[348223759,1736399440852,-29475.21,0.00020273,2]
[348223760,1736399440861,-500.0,0.00020273,3]
[348223761,1736399440871,-1805.13,0.00020273,3]
[348223762,1736399440880,-500.0,0.00020273,3]
[348223763,1736399440889,-594.32,0.00020273,3]
[348223764,1736399440899,-500.0,0.00020273,3]
[348223765,1736399440909,-699.3,0.00020273,3]
[348223766,1736399440918,-500.0,0.00020273,3]
[348223767,1736399440927,-500.0,0.00020273,3]
[348223768,1736399440937,-500.0,0.00020273,3]
[348223769,1736399440946,-500.0,0.00020273,3]
[348223770,1736399440956,-216.64,0.00020273,3]
[348223771,1736399440965,-500.0,0.00020273,3]
[348223772,1736399440974,-9620.24,0.00020273,3]
[348223773,1736399440983,-769.26,0.00020273,3]
[348223774,1736399440993,-500.0,0.00020273,3]
[348223775,1736399441002,-500.0,0.00020273,3]
[348223776,1736399441011,-935.81,0.00020273,3]
[348223777,1736399441020,-851.59,0.00020273,3]
[348223778,1736399441030,-500.0,0.00020273,3]
[348223779,1736399441039,-500.0,0.00020273,3]
[348223780,1736399441048,-500.0,0.00020273,3]
[348223781,1736399441057,-500.0,0.00020273,3]
[348223782,1736399441067,-2400.13,0.00020273,3]
[348223783,1736399441076,-500.0,0.00020273,3]
[348223784,1736399441085,-500.0,0.00020273,3]
[348223785,1736399441095,-500.0,0.00020273,3]
[348223786,1736399441104,-152.86,0.00020418,2]
[348223787,1736399441113,-151.0,0.0002042,2]
[348223788,1736399441122,-255.209534,0.00020452,2]
[348223789,1736399441132,-255.209534,0.00020452,2]
[348223790,1736399441141,-151.0,0.00020547,2]
[348223791,1736399441150,-151.0,0.00020547,2]
[348223792,1736399441159,-242.862676,0.00020547,2]
[348223793,1736399441167,-242.862676,0.00020547,2]
[348223794,1736399441176,-151.0,0.00020547,2]
[348223795,1736399441185,-151.0,0.00020547,2]
[348223796,1736399441194,-381.72,0.00020547,3]
[348223797,1736399441203,-332.293283,0.00020547,2]
[348223798,1736399441213,-332.293283,0.00020547,2]
[348223799,1736399441222,-500.0,0.00020547,3]
[348223800,1736399441232,-2217.11,0.00020547,3]
[348223801,1736399441242,-359.19463735,0.00020547,3]
[348223802,1736399441251,-290.13,0.00020547,3]
[348223803,1736399441260,-410.9,0.00020547,3]
[348223804,1736399441269,-646.16,0.00020547,3]
[348223805,1736399441279,-1229.9,0.00020547,3]
[348223806,1736399441289,-151.0,0.00020547,2]
[348223807,1736399441298,-151.0,0.00020547,2]
[348223808,1736399441307,-495.596154,0.00020547,2]
[348223809,1736399441317,-495.596154,0.00020547,2]
[348223810,1736399441325,-151.0,0.00020547,2]
[348223811,1736399441334,-419.543378,0.00020547,2]
[348223812,1736399441342,-419.543378,0.00020547,2]
[348223813,1736399441350,-1014.89,0.00020547,3]
[348223814,1736399441362,-500.0,0.00020547,3]
[348223815,1736399441371,-20180.35597489,0.00020547,2]
[348223816,1736399441442,-9294.85402511,0.00020547,2]
[348223817,1736399441453,-500.0,0.00020547,3]
[348223818,1736399441464,-1805.13,0.00020547,3]
[348223819,1736399441473,-500.0,0.00020547,3]
[348223820,1736399441483,-280.07,0.00020547,3]
[348223821,1736399441492,-699.3,0.00020547,3]
[348223822,1736399441502,-500.0,0.00020547,3]
[348223823,1736399441511,-500.0,0.00020547,3]
[348223824,1736399441521,-500.0,0.00020547,3]
[348223825,1736399441530,-500.0,0.00020547,3]
[348223826,1736399441539,-9620.24,0.00020547,3]
[348223827,1736399441549,-151.0,0.00020547,2]
[348223828,1736399441558,-769.26,0.00020547,3]
[348223829,1736399441567,-500.0,0.00020547,3]
[348223830,1736399441577,-500.0,0.00020547,3]
[348223831,1736399441586,-935.81,0.00020547,3]
[348223832,1736399441595,-851.59,0.00020547,3]
[348223833,1736399441684,-500.0,0.00020547,3]
[348223834,1736399441694,-346.71146103,0.00020547,3]
[348223835,1736399441703,-500.0,0.00020547,3]
[348223836,1736399441712,-500.0,0.00020547,3]
[348223837,1736399441721,-2400.13,0.00020547,3]
[348223838,1736399441730,-500.0,0.00020547,3]
[348223839,1736399441739,-500.0,0.00020547,3]
[348223840,1736399441749,-500.0,0.00020547,3]
[348223841,1736399441758,-8742.69,0.000206,2]
[348223842,1736399441767,-620.0,0.000208,2]
[348223843,1736399441776,-151.0,0.00020821,2]
[348223844,1736399441786,-151.0,0.00020821,2]
[348223845,1736399441795,-151.0,0.00020821,2]
[348223846,1736399441804,-151.0,0.00020821,2]
[348223847,1736399441813,-152.065721,0.00020821,2]
[348223848,1736399441823,-151.0,0.00020821,2]
[348223849,1736399441832,-151.0,0.00020821,2]
[348223850,1736399441841,-178.668136,0.00020821,2]
[348223851,1736399441851,-178.668136,0.00020821,2]
[348223852,1736399441860,-151.0,0.00020821,2]
[348223853,1736399441870,-332.293283,0.00020821,2]
[348223854,1736399441879,-332.293283,0.00020821,2]
[348223855,1736399441889,-2217.11,0.00020821,3]
[348223856,1736399441898,-1229.9,0.00020821,3]
[348223857,1736399441907,-495.596154,0.00020821,2]
[348223858,1736399441917,-495.596154,0.00020821,2]
[348223859,1736399441929,-419.543378,0.00020821,2]
[348223860,1736399441938,-419.543378,0.00020821,2]
[348223861,1736399441947,-1014.89,0.00020821,3]
[348223862,1736399441957,-255.209534,0.00020821,2]
[348223863,1736399441965,-255.209534,0.00020821,2]
[348223864,1736399441975,-500.0,0.00020821,3]
[348223865,1736399441983,-29475.21,0.00020821,2]
[348223866,1736399441993,-500.0,0.00020821,3]
[348223867,1736399442002,-1805.13,0.00020821,3]
[348223868,1736399442011,-699.3,0.00020821,3]
[348223869,1736399442020,-500.0,0.00020821,3]
[348223870,1736399442029,-500.0,0.00020821,3]
[348223871,1736399442038,-500.0,0.00020821,3]
[348223872,1736399442047,-500.0,0.00020821,3]
[348223873,1736399442056,-9620.24,0.00020821,3]
[348223874,1736399442065,-769.26,0.00020821,3]
[348223875,1736399442075,-500.0,0.00020821,3]
[348223876,1736399442084,-500.0,0.00020821,3]
[348223877,1736399442093,-935.81,0.00020821,3]
[348223878,1736399442102,-851.59,0.00020821,3]
[348223879,1736399442111,-500.0,0.00020821,3]
[348223880,1736399442121,-500.0,0.00020821,3]
[348223881,1736399442130,-500.0,0.00020821,3]
[348223882,1736399442139,-2400.13,0.00020821,3]
[348223883,1736399442150,-500.0,0.00020821,3]
[348223884,1736399442159,-500.0,0.00020821,3]
[348223885,1736399442168,-500.0,0.00020821,3]
[348223886,1736399442177,-151.0,0.00020865,2]
[348223887,1736399442186,-500.0,0.00021,2]
[348223888,1736399442195,-500.0,0.00021,2]
[348223889,1736399442205,-500.0,0.00021,2]
[348223890,1736399442214,-500.0,0.00021,2]
[348223891,1736399442223,-500.0,0.00021,2]
[348223892,1736399442232,-500.0,0.00021,2]
[348223893,1736399442242,-500.0,0.00021,2]
[348223894,1736399442251,-515.36293343,0.00021,2]
[348223895,1736399442260,-275.0,0.00021,4]
[348223896,1736399442269,-218.592312,0.00021,2]
[348223897,1736399442279,-151.0,0.00021,2]
[348223899,1736399442288,-151.489755,0.00021095,2]
[348223900,1736399442297,-171.981235,0.00021095,2]
[348223901,1736399442306,-242.862676,0.00021095,2]
[348223902,1736399442315,-242.862676,0.00021095,2]
[348223903,1736399442324,-151.0,0.00021095,2]
[348223904,1736399442333,-2217.11,0.00021095,3]
[348223905,1736399442342,-1229.9,0.00021095,3]
[348223906,1736399442352,-1014.89,0.00021095,3]
[348223907,1736399442366,-255.209534,0.00021095,2]
[348223908,1736399442375,-255.209534,0.00021095,2]
[348223909,1736399442384,-310.56,0.00021095,3]
[348223910,1736399442394,-29475.21,0.00021095,2]
[348223911,1736399442405,-500.0,0.00021095,3]
[348223912,1736399442415,-1805.13,0.00021095,3]
[348223913,1736399442424,-699.3,0.00021095,3]
[348223914,1736399442433,-500.0,0.00021095,3]
[348223915,1736399442443,-500.0,0.00021095,3]
[348223916,1736399442453,-500.0,0.00021095,3]
[348223917,1736399442464,-7586.4156008,0.00021095,3]
[348223969,1736399445953,-151.0,0.00019452,2]
[348223971,1736399445963,-151.0,0.00019726,2]
[348223973,1736399445973,-151.0,0.0002,2]
[348223975,1736399445982,-1001.357886,0.000202,2]
[348223977,1736399445991,-151.887713,0.00020547,2]
[348223979,1736399446001,-2033.8243992,0.00021095,3]
[348223981,1736399446011,-769.26,0.00021095,3]
[348223984,1736399446020,-165.88850436,0.00021095,3]
[348223985,1736399446030,-500.0,0.00021095,3]
[348223988,1736399446039,-935.81,0.00021095,3]
[348223990,1736399446049,-851.59,0.00021095,3]
[348223992,1736399446058,-500.0,0.00021095,3]
[348223994,1736399446067,-500.0,0.00021095,3]
[348223996,1736399446077,-500.0,0.00021095,3]
[348223998,1736399446086,-2400.13,0.00021095,3]
[348224000,1736399446094,-554.71,0.00021095,3]
[348224002,1736399446104,-500.0,0.00021095,3]
[348224003,1736399446113,-289.14,0.00021095,3]
[348224006,1736399446124,-151.0,0.000211,3]
[348224008,1736399446133,-151.0,0.00021369,2]
[348224009,1736399446142,-151.0,0.00021369,2]
[348224011,1736399446151,-178.668136,0.00021369,2]
[348224013,1736399446162,-178.668136,0.00021369,2]
[348224015,1736399446171,-242.862676,0.00021369,2]
[348224016,1736399446180,-242.862676,0.00021369,2]
[348224017,1736399446189,-151.872032,0.00021369,2]
[348224018,1736399446199,-151.0,0.00021369,2]
[348224019,1736399446208,-332.293283,0.00021369,2]
[348224020,1736399446217,-332.293283,0.00021369,2]
[348224021,1736399446226,-2217.11,0.00021369,3]
[348224022,1736399446235,-1229.9,0.00021369,3]
[348224023,1736399446245,-500.0,0.00021369,3]
[348224024,1736399446254,-500.0,0.00021369,3]
[348224025,1736399446263,-495.596154,0.00021369,2]
[348224026,1736399446272,-500.0,0.00021369,3]
[348224027,1736399446281,-150.2,0.00021369,3]
[348224028,1736399446291,-150.2,0.00021369,3]
[348224029,1736399446300,-495.596154,0.00021369,2]
[348224030,1736399446309,-151.0,0.00021369,2]
[348224031,1736399446318,-419.543378,0.00021369,2]
[348224032,1736399446327,-419.543378,0.00021369,2]
[348224033,1736399446337,-1014.89,0.00021369,3]
[348224034,1736399446347,-150.2,0.00021369,3]
[348224035,1736399446356,-29475.21,0.00021369,2]
[348224036,1736399446369,-258.29,0.00021369,3]
[348224037,1736399446378,-1805.13,0.00021369,3]
[348224038,1736399446389,-699.3,0.00021369,3]
[348224039,1736399446398,-500.0,0.00021369,3]
[348224040,1736399446412,-163.44524594,0.00021369,3]
[348224041,1736399446421,-203.71459344,0.00021369,3]
[348224042,1736399446431,-159.63004803,0.00021369,3]
[348224043,1736399446442,-500.0,0.00021369,2]
[348224044,1736399446451,-165.92329808,0.00021369,3]
[348224045,1736399446460,-150.2,0.00021369,3]
[348224046,1736399446471,-151.16768175,0.00021369,3]
[348224047,1736399446480,-150.2,0.00021369,3]
[348224048,1736399446489,-500.0,0.00021369,3]
[348224049,1736399446498,-500.0,0.00021369,3]
[348224050,1736399446507,-150.2,0.00021369,2]
[348224051,1736399446517,-185.57499363,0.00021369,3]
[348224052,1736399446526,-500.0,0.00021369,3]
[348224053,1736399446536,-500.0,0.00021369,3]
[348224054,1736399446547,-9620.24,0.00021369,3]
[348224055,1736399446557,-769.26,0.00021369,3]
[348224056,1736399446566,-500.0,0.00021369,3]
[348224057,1736399446576,-935.81,0.00021369,3]
[348224058,1736399446585,-851.59,0.00021369,3]
[348224059,1736399446595,-500.0,0.00021369,3]
[348224060,1736399446604,-500.0,0.00021369,3]
[348224061,1736399446613,-150.2,0.00021369,2]
[348224062,1736399446622,-150.2,0.00021369,3]
[348224063,1736399446632,-500.0,0.00021369,3]
[348224064,1736399446641,-500.0,0.00021369,3]
[348224065,1736399446650,-500.0,0.00021369,3]
[348224066,1736399446662,-150.2,0.00021369,2]
[348224067,1736399446671,-500.0,0.00021369,3]
[348224068,1736399446681,-500.0,0.00021369,3]
[348224069,1736399446690,-500.0,0.00021369,3]
[348224070,1736399446699,-500.0,0.00021369,3]
[348224071,1736399446708,-2400.13,0.00021369,3]
[348224072,1736399446718,-500.0,0.00021369,3]
[348224073,1736399446727,-150.191,0.00021433,2]
[348224074,1736399446736,-151.885,0.00021433,2]
[348224075,1736399446745,-154.444,0.00021433,2]
[348224076,1736399446754,-2039.628,0.00021433,2]
[348224077,1736399446764,-537.122,0.00021433,2]
[348224078,1736399446774,-2328.643,0.00021433,2]
[348224079,1736399446783,-1427.15712884,0.000215,2]
[348224081,1736400147143,160.231987,0.00013973,2]
[348224087,1736400442124,-199.945627,0.00018101,2]
[348224088,1736400442145,-200.43,0.00018485,2]
[348224089,1736400442166,-300.0,0.00018494,2]
[348224090,1736400442189,-2398.83504614,0.00018495,2]
[348224091,1736400442235,-1890.79880406,0.00018495,2]
[348224092,1736400545118,-281.13167656,0.00016,2]
[348224093,1736400545170,-28.81544462,0.00016,2]
[348224132,1736400632426,-300.0,0.00018133,2]
[348224133,1736400632435,-1414.805804,0.00018134,2]
[348224134,1736400632448,-6544.59350603,0.00018134,2]
[348224135,1736400632460,-9383.08028717,0.00018134,2]
[348224136,1736400632469,-351.96909244,0.000189,2]
[348224137,1736400632479,-156.315,0.00019002,2]
[348224138,1736400632488,-177.46596277,0.00019078,2]
[348224139,1736400632497,-154.28,0.00019177,2]
[348224140,1736400632507,-500.0,0.00019177,2]
[348224141,1736400632516,-434.15008325,0.00019177,2]
[348224142,1736400632526,-500.0,0.00019177,2]
[348224143,1736400632535,-500.0,0.00019177,2]
[348224144,1736400632544,-500.0,0.00019177,2]
[348224145,1736400632553,-500.0,0.00019177,2]
[348224146,1736400632563,-500.0,0.00019177,2]
[348224147,1736400632572,-500.0,0.00019177,2]
[348224148,1736400632581,-500.0,0.00019177,2]
[348224149,1736400632591,-500.0,0.00019177,2]
[348224150,1736400632600,-500.0,0.00019177,2]
[348224151,1736400632609,-500.0,0.00019177,2]
[348224152,1736400632619,-624.58174608,0.00019177,2]
[348224153,1736400632628,-500.0,0.00019177,2]
[348224154,1736400632637,-500.0,0.00019177,2]
[348224155,1736400632646,-500.0,0.00019177,2]
[348224156,1736400632656,-500.0,0.00019177,2]
[348224157,1736400632666,-429.41927684,0.00019177,2]
[348224158,1736400632675,-500.0,0.00019177,2]
[348224159,1736400632685,-500.0,0.00019177,2]
[348224160,1736400632694,-502.13295984,0.00019177,2]
[348224161,1736400632703,-500.0,0.00019177,2]
[348224162,1736400632713,-500.0,0.00019177,2]
[348224163,1736400632722,-359.72513549,0.00019178,2]
[348224164,1736400632731,-502.06846376,0.00019178,2]
[348224165,1736400632741,-865.17,0.00019178,2]
[348224166,1736400632750,-764.93,0.00019178,2]
[348224167,1736400632759,-509.4849054,0.00019178,2]
[348224168,1736400632768,-1406.53,0.00019178,2]
[348224169,1736400632778,-500.0,0.00019178,2]
[348224170,1736400632788,-500.0,0.00019178,2]
[348224171,1736400632797,-500.0,0.00019178,2]
[348224172,1736400632806,-500.0,0.00019178,2]
[348224173,1736400632816,-500.0,0.00019178,2]
[348224174,1736400632825,-500.0,0.00019178,2]
[348224175,1736400632835,-500.0,0.00019178,2]
[348224177,1736400632844,-500.0,0.00019178,2]
[348224179,1736400632853,-500.0,0.00019178,2]
[348224180,1736400632863,-500.0,0.00019178,2]
[348224182,1736400632873,-553.66,0.00019178,2]
[348224183,1736400632883,-500.0,0.00019178,2]
[348224184,1736400632893,-500.0,0.00019178,2]
[348224185,1736400632902,-500.0,0.00019178,2]
[348224187,1736400632912,-500.0,0.00019178,2]
[348224189,1736400632922,-500.0,0.00019178,2]
[348224191,1736400632931,-500.0,0.00019178,2]
[348224193,1736400632941,-500.0,0.00019178,2]
[348224195,1736400632950,-500.0,0.00019178,2]
[348224197,1736400632960,-382.60060418,0.00019178,2]
[348224208,1736400637981,-117.39939582,0.00019178,2]
[348224209,1736400637991,-500.0,0.00019178,2]
[348224210,1736400638000,-500.0,0.00019178,2]
[348224211,1736400638010,-1542.41,0.00019178,2]
[348224212,1736400638019,-500.0,0.00019178,2]
[348224213,1736400638029,-500.0,0.00019178,2]
[348224214,1736400638041,-500.0,0.00019178,2]
[348224215,1736400638051,-500.0,0.00019178,2]
[348224216,1736400638060,-500.0,0.00019178,2]
[348224217,1736400638070,-500.0,0.00019178,2]
[348224218,1736400638079,-500.0,0.00019178,2]
[348224219,1736400638089,-500.0,0.00019178,2]
[348224220,1736400638101,-61.73214899,0.00019178,2]
[348224221,1736400638124,-122.75526023,0.00019178,2]
[348224222,1736400638133,-291.93505818,0.00019178,2]
[348224223,1736400638143,-500.0,0.00019178,2]
[348224224,1736400638152,-500.0,0.00019178,2]
[348224225,1736400638162,-500.0,0.00019178,2]
[348224226,1736400638171,-500.0,0.00019178,2]
[348224227,1736400638180,-500.0,0.00019178,2]
[348224228,1736400638190,-18521.83,0.00019178,2]
[348224229,1736400638199,-500.0,0.00019178,2]
[348224230,1736400638208,-500.0,0.00019178,2]
[348224231,1736400638217,-1217.05,0.00019178,2]
[348224232,1736400638226,-500.0,0.00019178,2]
[348224233,1736400638235,-500.0,0.00019178,2]
[348224234,1736400638244,-500.0,0.00019178,2]
[348224235,1736400638253,-500.0,0.00019178,2]
[348224236,1736400638262,-500.0,0.00019178,2]
[348224237,1736400638272,-500.0,0.00019178,2]
[348224238,1736400638281,-500.0,0.00019178,2]
[348224239,1736400638290,-500.0,0.00019178,2]
[348224240,1736400638299,-6740.09,0.00019178,2]
[348224241,1736400638308,-500.0,0.00019178,2]
[348224242,1736400638318,-500.0,0.00019178,2]
[348224243,1736400638327,-500.0,0.00019178,2]
[348224244,1736400638336,-501.83797538,0.00019178,2]
[348224245,1736400638345,-500.0,0.00019178,2]
[348224246,1736400638355,-500.0,0.00019178,2]
[348224247,1736400638364,-500.0,0.00019178,2]
[348224248,1736400638373,-500.0,0.00019178,2]
[348224249,1736400638382,-167.21322735,0.00019178,2]
[348224250,1736400638394,-245.85869281,0.00019178,2]
[348224251,1736400638403,-109.46476765,0.00019178,2]
[348224252,1736400638539,-390.53523235,0.00019178,2]
[348224253,1736400638549,-500.0,0.00019178,2]
[348224254,1736400638558,-362.31085255,0.00019178,2]
[348224255,1736400638571,-137.68914745,0.00019178,2]
[348224256,1736400638581,-501.62,0.00019178,2]
[348224257,1736400638591,-654.93,0.00019178,2]
[348224258,1736400638602,-500.0,0.00019178,2]
[348224259,1736400638612,-577.59,0.00019178,2]
[348224260,1736400638621,-500.0,0.00019178,2]
[348224261,1736400638630,-500.0,0.00019178,2]
[348224262,1736400638639,-500.0,0.00019178,2]
[348224263,1736400638648,-500.0,0.00019178,2]
[348224264,1736400638658,-598.45,0.00019178,2]
[348224265,1736400638667,-500.0,0.00019178,2]
[348224266,1736400638676,-500.0,0.00019178,2]
[348224267,1736400638685,-500.0,0.00019178,2]
[348224268,1736400638694,-500.0,0.00019178,2]
[348224269,1736400638703,-500.0,0.00019178,2]
[348224270,1736400638712,-500.87,0.00019178,2]
[348224271,1736400638721,-500.0,0.00019178,2]
[348224272,1736400638730,-500.0,0.00019178,2]
[348224273,1736400638739,-500.0,0.00019178,2]
[348224274,1736400638748,-500.0,0.00019178,2]
[348224275,1736400638757,-169.52182272,0.00019352,2]
[348224276,1736400638766,-151.0,0.00019452,2]
[348224277,1736400638775,-151.0,0.00019452,2]
[348224278,1736400638784,-151.0,0.00019452,2]
[348224279,1736400638793,-151.0,0.00019452,2]
[348224280,1736400638803,-151.0,0.00019452,2]
[348224281,1736400638812,-151.0,0.00019452,2]
[348224282,1736400638821,-865.17,0.00019452,3]
[348224283,1736400638830,-764.93,0.00019452,3]
[348224284,1736400638840,-1406.53,0.00019452,3]